Workbook

Sheet Dimen
B4: STRING-COUPLED PENDULA
C9: ft/sec2
B10: G | C10: 32
C15: feet | D15: inches
B16: H | C16: =D16/12 -> 0.75 | D16: 9
B17: S | C17: =D17/12 -> 0.4166666667 | D17: 5
B18: L | C18: =D18/12 -> 1 | D18: 12
B19: Q | C19: =D19/12 -> 0.3333333333 | D19: 4
G36: Y-motion | K36: X-motion
G37: wY = w1 | H37: =SQRT(G/(L+Q*S/H)) -> 5.196152423 | K37: wX = w1 | L37: =SQRT(G/(L)) -> 5.656854249
C38: w0 | D38: =SQRT(G/(L+Q)) -> 4.898979486 | G38: w0 = w2 | H38: =Wo -> 4.898979486 | K38: w0 = w2 | L38: =Wo -> 4.898979486

Sheet BiHO
K22: PULSES PER HALF CYCLE
N41: N
L42: L/Q | M42: =L/Q -> 3 | N42: =1/2+M42+SQRT(M42*(M42+1)) -> 6.964101615
M44: =Q*(H-S)/2 -> 0.05555555556
N45: =upln/phi -> 17
M46: =L*H+Q*(H+S)/2 -> 0.9444444444
L49: l | M49: =upln-phi -> 0.8888888889

Sheet Closed
AF3: y - motion | AH3: x - motion
AD4: interval | AE4: w1 | AF4: w2 | AG4: w1 | AH4: w2 | AI4: = w0
AD5: 0.1 | AE5: =Wy -> 5.196152423 | AF5: =Wo -> 4.898979486 | AG5: =Wx -> 5.656854249 | AH5: =Wo -> 4.898979486
AD7: time | AE7: P1 | AF7: P2 - 2.5 | AG7: P1 - 5.0 | AH7: P2 -7.5
AD9: 0 | AE9: =COS((Wy+Wo)*$AD9/2)*COS((Wy-Wo)*$AD9/2) -> 1 | AF9: =-2.5+SIN((Wy+Wo)*$AD9/2)*SIN((Wy-Wo)*$AD9/2) -> -2.5 | AG9: =-5+COS((Wx+Wo)*$AD9/2)*COS((Wx-Wo)*$AD9/2) -> -4 | AH9: =-7.5+SIN((Wx+Wo)*$AD9/2)*SIN((Wx-Wo)*$AD9/2) -> -7.5
AD10: =AD9+interval -> 0.1 | AE10: 0.875195588 | AF10: -2.492814706 | AG10: -4.136698852 | AH10: -7.480920266
AD11: 0.2 | AE11: 0.5320378914 | AF11: -2.474845849 | AG11: -4.508694182 | AH11: -7.434113776
AD12: 0.3 | AE12: 0.0564403223 | AF12: -2.455509993 | AG12: -5.012497211 | AH12: -7.38657246
AD13: 0.4 | AE13: -0.4326059017 | AF13: -2.446468155 | AG13: -5.508555197 | AH13: -7.370518859
AD14: 0.5 | AE14: -0.8129005912 | AF14: -2.457005139 | AG14: -5.860634429 | AH14: -7.409271301
AD15: 0.6 | AE15: -0.9896702586 | AF15: -2.489955879 | AG15: -5.973956026 | AH15: -7.505670112
AD16: 0.7 | AE16: -0.9192651567 | AF16: -2.539635864 | AG16: -5.82121665 | AH16: -7.63768437
AD17: 0.8 | AE17: -0.6199729507 | AF17: -2.592632769 | AG17: -5.449212491 | AH17: -7.763393228
AD18: 0.9 | AE18: -0.167261213 | AF18: -2.631417093 | AG18: -4.964445614 | AH18: -7.834232692
AD19: 1 | AE19: 0.3253118585 | AF19: -2.639802193 | AG19: -4.502153366 | AH19: -7.812336969
AD20: 1.1 | AE20: 0.7346751799 | AF20: -2.60861651 | AG20: -4.187889856 | AH20: -7.686051473
AD21: 1.2 | AE21: 0.9590962104 | AF21: -2.539761472 | AG21: -4.10275502 | AH21: -7.477910242
AD22: 1.3 | AE22: 0.943546968 | AF22: -2.447198844 | AG22: -4.262081967 | AH22: -7.241569909
AD23: 1.4 | AE23: 0.6932388601 | AF23: -2.354256526 | AG23: -4.613292455 | AH23: -7.04772521
AD24: 1.5 | AE24: 0.2719866351 | AF24: -2.287730814 | AG24: -5.052969332 | AH24: -6.962774846
AD25: 1.6 | AE25: -0.214105421 | AF25: -2.270280756 | AG25: -5.45766429 | AH25: -7.026721887
AD26: 1.7 | AE26: -0.6434536742 | AF26: -2.31324747 | AG26: -5.719174842 | AH26: -7.237526302
AD27: 1.8 | AE27: -0.9095064687 | AF27: -2.412076071 | AG27: -5.774048787 | AH27: -7.547533753
AD28: 1.9 | AE28: -0.9472749045 | AF28: -2.545921403 | AG28: -5.619113434 | AH28: -7.874082874
AD29: 2 | AE29: -0.749255083 | AF29: -2.681917245 | AG29: -5.309188693 | AH29: -8.121983635
AD30: 2.1 | AE30: -0.3668288391 | AF30: -2.783272174 | AG30: -4.938467038 | AH30: -8.211633975
AD31: 2.2 | AE31: 0.1030903322 | AF31: -2.819191415 | AG31: -4.611723927 | AH31: -8.104377155
AD32: 2.3 | AE32: 0.5426902785 | AF32: -2.773956193 | AG32: -4.414197313 | AH32: -7.817068602
AD33: 2.4 | AE33: 0.842893031 | AF33: -2.65254031 | AG33: -4.388926977 | AH33: -7.420720302
AD34: 2.5 | AE34: 0.9305101512 | AF34: -2.480936151 | AG34: -4.527697331 | AH34: -7.022728669
AD35: 2.6 | AE35: 0.7861376856 | AF35: -2.300718518 | AG35: -4.77738173 | AH35: -6.737199103
AD36: 2.7 | AE36: 0.4484021089 | AF36: -2.158946041 | AG36: -5.058821377 | AH36: -6.651722556
AD37: 2.8 | AE37: 0.003642555045 | AF37: -2.09585984 | AG37: -5.291809579 | AH37: -6.800407706
AD38: 2.9 | AE38: -0.4362184809 | AF38: -2.133598243 | AG38: -5.418321643 | AH38: -7.151495081
AD39: 3 | AE39: -0.761930126 | AF39: -2.269062473 | AG39: -5.417166769 | AH39: -7.613825831
AD40: 3.1 | AE40: -0.8941385803 | AF40: -2.473120133 | AG40: -5.306302991 | AH40: -8.060955722
AD41: 3.2 | AE41: -0.8027758756 | AF41: -2.696736542 | AG41: -5.133102451 | AH41: -8.366409966
AD42: 3.3 | AE42: -0.5138604484 | AF42: -2.882782135 | AG42: -4.956573749 | AH42: -8.440068834
AD43: 3.4 | AE43: -0.1021817234 | AF43: -2.980666407 | AG43: -4.827790211 | AH43: -8.25505792
AD44: 3.5 | AE44: 0.3280950024 | AF44: -2.960040513 | AG44: -4.774901041 | AH44: -7.85704447
AD45: 3.6 | AE45: 0.6698652678 | AF45: -2.81986953 | AG45: -4.797178037 | AH45: -7.352826226
AD46: 3.7 | AE46: 0.8398345381 | AF46: -2.590229932 | AG46: -4.869290019 | AH46: -6.881105375
AD47: 3.8 | AE47: 0.7988770398 | AF47: -2.32599923 | AG47: -4.95352112 | AH47: -6.573601071
AD48: 3.9 | AE48: 0.5610132765 | AF48: -2.093720323 | AG48: -5.01510855 | AH48: -6.517598496
AD49: 4 | AE49: 0.1889541268 | AF49: -1.954790318 | AG49: -5.03507742 | AH49: -6.730758771
AD50: 4.1 | AE50: -0.2224346564 | AF50: -1.949234078 | AG50: -5.016102368 | AH50: -7.155566366
AD51: 4.2 | AE51: -0.5703869564 | AF51: -2.084350389 | AG51: -4.979581561 | AH51: -7.675155784
AD52: 4.3 | AE52: -0.7699925096 | AF52: -2.331413307 | AG52: -4.95532696 | AH52: -8.146078856
AD53: 4.4 | AE53: -0.774978448 | AF53: -2.631622196 | AG53: -4.967939891 | AH53: -8.438660753
AD54: 4.5 | AE54: -0.5884144158 | AF54: -2.91011392 | AG54: -5.025136776 | AH54: -8.473391559
AD55: 4.6 | AE55: -0.2608705314 | AF55: -3.094693452 | AG55: -5.112605428 | AH55: -8.242958555
AD56: 4.7 | AE56: 0.1232428449 | AF56: -3.134581113 | AG56: -5.197638917 | AH56: -7.813699352
AD57: 4.8 | AE57: 0.4674744157 | AF57: -3.014300657 | AG57: -5.24060898 | AH57: -7.306217261
AD58: 4.9 | AE58: 0.6876294445 | AF58: -2.758928337 | AG58: -5.210402455 | AH58: -6.860896437
AD59: 5 | AE59: 0.7324251437 | AF59: -2.429043579 | AG59: -5.09828453 | AH59: -6.598333905
AD60: 5.1 | AE60: 0.5954207497 | AF60: -2.10634479 | AG60: -4.924888743 | AH60: -6.586035298
AD61: 5.2 | AE61: 0.3154511394 | AF61: -1.873349269 | AG61: -4.737151794 | AH61: -6.820746335
AD62: 5.3 | AE62: -0.03425251924 | AF62: -1.792238081 | AG62: -4.595356983 | AH62: -7.231133617
AD63: 5.4 | AE63: -0.3652354918 | AF63: -1.888282742 | AG63: -4.553930846 | AH63: -7.699587388
AD64: 5.5 | AE64: -0.5962617259 | AF64: -2.142266078 | AG64: -4.642075139 | AH64: -8.096452665
AD65: 5.6 | AE65: -0.673314925 | AF65: -2.494111589 | AG65: -4.850835583 | AH65: -8.316590931
AD66: 5.7 | AE66: -0.5822181576 | AF66: -2.857102831 | AG66: -5.131537911 | AH66: -8.307783077
AD67: 5.8 | AE67: -0.3509263782 | AF67: -3.139324872 | AG67: -5.407102648 | AH67: -8.083148602
AD68: 5.9 | AE68: -0.04122775261 | AF68: -3.267008803 | AG68: -5.593619097 | AH68: -7.714617459
AD69: 6 | AE69: 0.2677393162 | AF69: -3.203833035 | AG69: -5.626031135 | AH69: -7.310062584
AD70: 6.1 | AE70: 0.4997617944 | AF70: -2.96112676 | AG70: -5.480039788 | AH70: -6.981325177
AD71: 6.2 | AE71: 0.6004126561 | AF71: -2.596137305 | AG71: -5.183014311 | AH71: -6.812710338
AD72: 6.3 | AE72: 0.5498136712 | AF72: -2.198522848 | AG72: -4.809726534 | AH72: -6.838982643
AD73: 6.4 | AE73: =COS((Wy+Wo)*$AD73/2)*COS((Wy-Wo)*$AD73/2) -> 0.3663087463 | AF73: =-2.5+SIN((Wy+Wo)*$AD73/2)*SIN((Wy-Wo)*$AD73/2) -> -1.868258603 | AG73: =-5+COS((Wx+Wo)*$AD73/2)*COS((Wx-Wo)*$AD73/2) -> -4.463235015 | AH73: =-7.5+SIN((Wx+Wo)*$AD73/2)*SIN((Wx-Wo)*$AD73/2) -> -7.038714841
AD74: =AD73+interval -> 6.5 | AE74: 0.1004484215 | AF74: -1.690418512 | AG74: -4.245891415 | AH74: -7.344078676
AD75: 6.6 | AE75: -0.1788505535 | AF75: -1.713213602 | AG75: -4.228769495 | AH75: -7.663294661
AD76: 6.7 | AE76: -0.4022002689 | AF76: -1.934967707 | AG76: -4.428731461 | AH76: -7.908436515
AD77: 6.8 | AE77: -0.5170374018 | AF77: -2.303538713 | AG77: -4.800462653 | AH77: -8.020113461
AD78: 6.9 | AE78: -0.4999941726 | AF78: -2.728578321 | AG78: -5.246594151 | AH78: -7.981978343
AD79: 7 | AE79: -0.3614327909 | AF79: -3.103747973 | AG79: -5.643699411 | AH79: -7.821481354
AD80: 7.1 | AE80: -0.1413308087 | AF80: -3.333410806 | AG80: -5.877086287 | AH80: -7.597655328
AD81: 7.2 | AE81: 0.1020719869 | AF81: -3.357077954 | AG81: -5.874406263 | AH81: -7.380599705
AD82: 7.3 | AE82: 0.3076799996 | AF82: -3.165344048 | AG82: -5.628109323 | AH82: -7.229554726
AD83: 7.4 | AE83: 0.4269269842 | AF83: -2.803112854 | AG83: -5.199768689 | AH83: -7.176417181
AD84: 7.5 | AE84: 0.4352533163 | AF84: -2.359086824 | AG84: -4.704464006 | AH84: -7.219369502
AD85: 7.6 | AE85: 0.3369615852 | AF85: -1.943979121 | AG85: -4.279249475 | AH85: -7.327768061
AD86: 7.7 | AE86: 0.1625516161 | AF86: -1.662816799 | AG86: -4.044514203 | AH86: -7.45575098
AD87: 7.8 | AE87: -0.04040185573 | AF87: -1.588286829 | AG87: -4.069318034 | AH87: -7.559370651
AD88: 7.9 | AE88: -0.2201688134 | AF88: -1.74190911 | AG88: -4.35083373 | AH88: -7.611244194
AD89: 8 | AE89: -0.3340854805 | AF89: -2.087921522 | AG89: -4.814075012 | AH89: -7.607931991
AD90: 8.1 | AE90: -0.3586896535 | AF90: -2.541593363 | AG90: -5.332266386 | AH90: -7.568016631
AD91: 8.2 | AE91: -0.2943594451 | AF91: -2.990037715 | AG91: -5.762212372 | AH91: -7.522184788
AD92: 8.3 | AE92: -0.1635966519 | AF92: -3.320394447 | AG92: -5.984617805 | AH92: -7.499373294
AD93: 8.4 | AE93: -0.003788241569 | AF93: -3.448324466 | AG93: -5.937807077 | AH93: -7.514305631
AD94: 8.5 | AE94: 0.143337767 | AF94: -3.33959877 | AG94: -5.635147944 | AH94: -7.561113059
AD95: 8.6 | AE95: 0.2426198759 | AF95: -3.019241964 | AG95: -5.161172863 | AH95: -7.615449225
AD96: 8.7 | AE96: 0.2738801105 | AF96: -2.565791192 | AG96: -4.647538973 | AH96: -7.644372109
AD97: 8.8 | AE97: 0.2358319947 | AF97: -2.091982539 | AG97: -4.23577628 | AH97: -7.620374264
AD98: 8.9 | AE98: 0.1447815829 | AF98: -1.716629601 | AG98: -4.037544016 | AH98: -7.534304002
AD99: 9 | AE99: 0.02884990385 | AF99: -1.53473223 | AG99: -4.103754029 | AH99: -7.402128297
AD100: 9.1 | AE100: -0.08041150022 | AF100: -1.593359622 | AG100: -4.4112609 | AH100: -7.262510222
AD101: 9.2 | AE101: -0.1565725288 | AF101: -1.879448013 | AG101: -4.870665206 | AH101: -7.165355336
AD102: 9.3 | AE102: -0.1847339755 | AF102: -2.322681695 | AG102: -5.352659485 | AH102: -7.154756186
AD103: 9.4 | AE103: -0.1642360236 | AF103: -2.812830327 | AG103: -5.725063151 | AH103: -7.2520032
AD104: 9.5 | AE104: -0.1072388667 | AF104: -3.227253917 | AG104: -5.889772791 | AH104: -7.444719993
AD105: 9.6 | AE105: -0.03392500892 | AF105: -3.461689597 | AG105: -5.809111138 | AH105: -7.686503468
AD106: 9.7 | AE106: 0.03403678529 | AF106: -3.456566591 | AG106: -5.514357231 | AH106: -7.908172574
AD107: 9.8 | AE107: 0.07975627304 | AF107: -3.212186994 | AG107: -5.094554887 | AH107: -8.037875834
AD108: 9.9 | AE108: 0.09533334529 | AF108: -2.788893094 | AG108: -4.669426509 | AH108: -8.02413324
AD109: 10 | AE109: 0.08296280965 | AF109: -2.292118933 | AG109: -4.35467681 | AH109: -7.854479314
AD110: 10.1 | AE110: 0.05287139786 | AF110: -1.846041496 | AG110: -4.22988373 | AH110: -7.563286368
AD111: 10.2 | AE111: 0.01898058696 | AF111: -1.562438079 | AG111: -4.318053644 | AH111: -7.225403848
AD112: 10.3 | AE112: -0.0061746297 | AF112: -1.512585629 | AG112: -4.582187683 | AH112: -6.936572575
AD113: 10.4 | AE113: -0.01559887903 | AF113: -1.709289251 | AG113: -4.939050559 | AH113: -6.785837571
AD114: 10.5 | AE114: -0.009766531983 | AF114: -2.103585419 | AG114: -5.285324814 | AH114: -6.828027137
AD115: 10.6 | AE115: 0.004200338308 | AF115: -2.596970515 | AG115: -5.527949794 | AH115: -7.064820383
AD116: 10.7 | AE116: 0.01572524376 | AF116: -3.066090553 | AG116: -5.609628291 | AH116: -7.440737019
AD117: 10.8 | AE117: 0.01518993541 | AF117: -3.393683414 | AG117: -5.522374369 | AH117: -7.85611911
AD118: 10.9 | AE118: -0.001979671141 | AF118: -3.49798672 | AG118: -5.30589381 | AH118: -8.194072581
AD119: 11 | AE119: -0.03299679043 | AF119: -3.353212183 | AG119: -5.032268026 | AH119: -8.353940948
AD120: 11.1 | AE120: -0.06803878056 | AF120: -2.99594254 | AG120: -4.782406169 | AH120: -8.281575151
AD121: 11.2 | AE121: -0.09322467668 | AF121: -2.51585902 | AG121: -4.621858458 | AH121: -7.987225239
AD122: 11.3 | AE122: -0.09536877433 | AF122: -2.033156643 | AG122: -4.583286031 | AH122: -7.545239386
AD123: 11.4 | AE123: -0.06699917075 | AF123: -1.668352992 | AG123: -4.660368557 | AH123: -7.074983605
AD124: 11.5 | AE124: -0.009954726302 | AF124: -1.51209859 | AG124: -4.814087141 | AH124: -6.707966176
AD125: 11.6 | AE125: 0.06377122998 | AF125: -1.602576153 | AG125: -4.988410284 | AH125: -6.550394639
AD126: 11.7 | AE126: 0.134475833 | AF126: -1.916142197 | AG126: -5.129665594 | AH126: -6.65200077
AD127: 11.8 | AE127: 0.1800044616 | AF127: -2.373511803 | AG127: -5.203111429 | AH127: -6.990395912
AD128: 11.9 | AE128: 0.182420098 | AF128: -2.85986721 | AG128: -5.201580846 | AH128: -7.475866266
AD129: 12 | AE129: 0.1341305647 | AF129: -3.253775102 | AG129: -5.144017592 | AH129: -7.975626945
AD130: 12.1 | AE130: 0.04152866741 | AF130: -3.457606542 | AG130: -5.06522993 | AH130: -8.350847944
AD131: 12.2 | AE131: -0.07520052096 | AF131: -3.421814147 | AG131: -5.001076459 | AH131: -8.495938209
AD132: 12.3 | AE132: -0.1864060072 | AF132: -3.157009483 | AG132: -4.974633159 | AH132: -8.368782332
AD133: 12.4 | AE133: -0.2605245219 | AF133: -2.730888219 | AG133: -4.988277365 | AH133: -8.003135376
AD134: 12.5 | AE134: -0.2729318165 | AF134: -2.250879108 | AG134: -5.024325891 | AH134: -7.499485034
AD135: 12.6 | AE135: -0.2136329077 | AF135: -1.836974961 | AG135: -5.053704123 | AH135: -6.996903745
AD136: 12.7 | AE136: -0.09148128022 | AF136: -1.591637745 | AG136: -5.049201887 | AH136: -6.633917139
AD137: 12.8 | AE137: =COS((Wy+Wo)*$AD137/2)*COS((Wy-Wo)*$AD137/2) -> 0.0665585819 | AF137: =-2.5+SIN((Wy+Wo)*$AD137/2)*SIN((Wy-Wo)*$AD137/2) -> -1.574350403 | AG137: =-5+COS((Wx+Wo)*$AD137/2)*COS((Wx-Wo)*$AD137/2) -> -4.998198706 | AH137: =-7.5+SIN((Wx+Wo)*$AD137/2)*SIN((Wx-Wo)*$AD137/2) -> -6.509593114
AD138: =AD137+interval -> 12.9 | AE138: 0.2212869638 | AF138: -1.787156882 | AG138: -4.909894596 | AH138: -6.655975322
AD139: 13 | AE139: 0.3310241418 | AF139: -2.17471527 | AG139: -4.814017565 | AH139: -7.029673563
AD140: 13.1 | AE140: 0.3628093059 | AF140: -2.638710585 | AG140: -4.751040297 | AH140: -7.524860982
AD141: 13.2 | AE141: 0.3020407131 | AF141: -3.062868731 | AG141: -4.757076723 | AH141: -8.003751295
AD142: 13.3 | AE142: 0.1577913384 | AF142: -3.342189372 | AG142: -4.848750695 | AH142: -8.335647339
AD143: 13.4 | AE143: -0.03794690331 | AF143: -3.409024561 | AG143: -5.013663738 | AH143: -8.433307726
AD144: 13.5 | AE144: -0.2372764807 | AF144: -3.249504517 | AG144: -5.210455671 | AH144: -8.276325326
AD145: 13.6 | AE145: -0.3881505755 | AF145: -2.906311334 | AG145: -5.379333669 | AH145: -7.915128241
AD146: 13.7 | AE146: -0.4479777945 | AF146: -2.467277209 | AG146: -5.460343785 | AH146: -7.454911219
AD147: 13.8 | AE147: -0.3955155572 | AF147: -2.042848686 | AG147: -5.413776404 | AH147: -7.02458784
AD148: 13.9 | AE148: -0.2377596136 | AF148: -1.738212956 | AG148: -5.235942029 | AH148: -6.740030541
AD149: 14 | AE149: -0.009709444538 | AF149: -1.62714274 | AG149: -4.964601616 | AH149: -6.672250568
AD150: 14.1 | AE150: 0.2333077597 | AF150: -1.734084928 | AG150: -4.671352562 | AH150: -6.829424606
AD151: 14.2 | AE151: 0.4290959385 | AF151: -2.028853507 | AG151: -4.442366163 | AH151: -7.157391405
AD152: 14.3 | AE152: 0.5245486369 | AF152: -2.435058047 | AG152: -4.352761813 | AH152: -7.557747597
AD153: 14.4 | AE153: 0.490002621 | AF153: -2.849934599 | AG153: -4.442314514 | AH153: -7.917617464
AD154: 14.5 | AE154: 0.328118861 | AF154: -3.170422761 | AG154: -4.700273206 | AH154: -8.142030694
AD155: 14.6 | AE155: 0.07469936865 | AF155: -3.318852226 | AG155: -5.064676064 | AH155: -8.179476793
AD156: 14.7 | AE156: -0.2091331334 | AF156: -3.261815475 | AG156: -5.437325108 | AH156: -8.033623501
AD157: 14.8 | AE157: -0.4517118964 | AF157: -3.017628226 | AG157: -5.71077326 | AH157: -7.758566862
AD158: 14.9 | AE158: -0.5889780062 | AF158: -2.650727769 | AG158: -5.799764409 | AH158: -7.439941367
AD159: 15 | AE159: -0.5813960552 | AF159: -2.254668292 | AG159: -5.66781 | AH159: -7.168254347
AD160: 15.1 | AE160: -0.4251669576 | AF160: -1.928200777 | AG160: -5.340618633 | AH160: -7.012749101
AD161: 15.2 | AE161: -0.1545953446 | AF161: -1.750569293 | AG161: -4.90170968 | AH161: -7.003454958
AD162: 15.3 | AE162: 0.1653343906 | AF162: -1.762223952 | AG162: -4.47072518 | AH162: -7.126164382
AD163: 15.4 | AE163: 0.4545974788 | AF163: -1.955658071 | AG163: -4.170177832 | AH163: -7.33088276
AD164: 15.5 | AE164: 0.6382115385 | AF164: -2.278431905 | AG164: -4.090048535 | AH164: -7.550171831
AD165: 15.6 | AE165: 0.6657064305 | AF165: -2.647339616 | AG165: -4.260612409 | AH165: -7.721020776
AD166: 15.7 | AE166: 0.5249177662 | AF166: -2.969903465 | AG166: -4.641757188 | AH166: -7.803228512
AD167: 15.8 | AE167: 0.2463522065 | AF167: -3.167631886 | AG167: -5.132415766 | AH167: -7.788863913
AD168: 15.9 | AE168: -0.1032993007 | AF168: -3.195173271 | AG168: -5.597895072 | AH168: -7.7005775
AD169: 16 | AE169: -0.4371564397 | AF169: -3.050677745 | AG169: -5.907565168 | AH169: -7.580269016
AD170: 16.1 | AE170: -0.6698090369 | AF170: -2.77501039 | AG170: -5.972172055 | AH170: -7.472647371
AD171: 16.2 | AE171: -0.7392234492 | AF171: -2.440323564 | AG171: -5.769945573 | AH171: -7.40960144
AD172: 16.3 | AE172: -0.6232635801 | AF172: -2.131155579 | AG172: -5.353768179 | AH172: -7.40065098
AD173: 16.4 | AE173: -0.3464311105 | AF173: -1.923011081 | AG173: -4.837080272 | AH173: -7.43236192
AD174: 16.5 | AE174: 0.02516529129 | AF174: -1.863866527 | AG174: -4.362353211 | AH174: -7.476348025
AD175: 16.6 | AE175: 0.3996218265 | AF175: -1.963144861 | AG175: -4.06105477 | AH175: -7.502468264
AD176: 16.7 | AE176: 0.6820441517 | AF176: -2.190684174 | AG176: -4.016555987 | AH176: -7.492084035
AD177: 16.8 | AE177: 0.7986672885 | AF177: -2.485630071 | AG177: -4.240626469 | AH177: -7.446336314
AD178: 16.9 | AE178: 0.7161425271 | AF178: -2.772685511 | AG178: -4.670260153 | AH178: -7.386282831
AD179: 17 | AE179: 0.4509436204 | AF179: -2.981384851 | AG179: -5.185704567 | AH179: -7.344736664
AD180: 17.1 | AE180: 0.0662674235 | AF180: -3.06344596 | AG180: -5.644453012 | AH180: -7.352725524
AD181: 17.2 | AE181: -0.3430467569 | AF181: -3.003913684 | AG181: -5.921389569 | AH181: -7.425570871
AD182: 17.3 | AE182: -0.6739749757 | AF182: -2.823529889 | AG182: -5.943580158 | AH182: -7.553924706
AD183: 17.4 | AE183: -0.8413224082 | AF183: -2.572075596 | AG183: -5.709855837 | AH183: -7.703542167
AD184: 17.5 | AE184: -0.7997041125 | AF184: -2.314720896 | AG184: -5.289825621 | AH184: -7.824599387
AD185: 17.6 | AE185: -0.555810044 | AF185: -2.115105713 | AG185: -4.802944286 | AH185: -7.867971472
AD186: 17.7 | AE186: -0.1676497267 | AF186: -2.019550859 | AG186: -4.383979125 | AH186: -7.80322146
AD187: 17.8 | AE187: 0.2692617784 | AF187: -2.046329574 | AG187: -4.145003427 | AH187: -7.632064369
AD188: 17.9 | AE188: 0.6454826785 | AF188: -2.182478981 | AG188: -4.144821334 | AH188: -7.392174969
AD189: 18 | AE189: 0.8651483701 | AF189: -2.388608471 | AG189: -4.374328578 | AH189: -7.149131523
AD190: 18.1 | AE190: 0.8704661562 | AF190: -2.610109578 | AG190: -4.761503998 | AH190: -6.978139424
AD191: 18.2 | AE191: 0.6569255694 | AF191: -2.791617252 | AG191: -5.193969755 | AH191: -6.940721927
AD192: 18.3 | AE192: 0.2752198522 | AF192: -2.89089428 | AG192: -5.552062874 | AH192: -7.063611554
AD193: 18.4 | AE193: -0.1808005493 | AF193: -2.888645575 | AG193: -5.74257092 | AH193: -7.326875205
AD194: 18.5 | AE194: -0.5972766038 | AF194: -2.791985716 | AG194: -5.723455432 | AH194: -7.665806888
AD195: 18.6 | AE195: -0.8688631541 | AF195: -2.631026862 | AG195: -5.512875993 | AH195: -7.987014022
AD196: 18.7 | AE196: -0.9254567273 | AF196: -2.449848621 | AG196: -5.180661632 | AH196: -8.194643717
AD197: 18.8 | AE197: -0.7503274304 | AF197: -2.294487964 | AG197: -4.825562029 | AH197: -8.219253366
AD198: 18.9 | AE198: -0.384956457 | AF198: -2.201207572 | AG198: -4.545599692 | AH198: -8.040564336
AD199: 19 | AE199: 0.08079686779 | AF199: -2.188040457 | AG199: -4.410497003 | AH199: -7.696746586
AD200: 19.1 | AE200: 0.5308656236 | AF200: -2.251580098 | AG200: -4.444070825 | AH200: -7.27664365
AD201: 19.2 | AE201: =COS((Wy+Wo)*$AD201/2)*COS((Wy-Wo)*$AD201/2) -> 0.8519955754 | AF201: =-2.5+SIN((Wy+Wo)*$AD201/2)*SIN((Wy-Wo)*$AD201/2) -> -2.369498687 | AG201: =-5+COS((Wx+Wo)*$AD201/2)*COS((Wx-Wo)*$AD201/2) -> -4.621111246 | AH201: =-7.5+SIN((Wx+Wo)*$AD201/2)*SIN((Wx-Wo)*$AD201/2) -> -6.896391866
AD202: =AD201+interval -> 19.3 | AE202: 0.9623352942 | AF202: -2.507747879 | AG202: -4.878705618 | AH202: -6.666706966
AD203: 19.4 | AE203: 0.8323562904 | AF203: -2.630233807 | AG203: -5.137663577 | AH203: -6.660213939
AD204: 19.5 | AE204: 0.4927422753 | AF204: -2.708250778 | AG204: -5.326938841 | AH204: -6.888569661
... 657 more rows

Sheet Pendula

Sheet Analog
AL3: y - motion | AN3: x - motion
AJ4: interval | AK4: w1 | AL4: w2 | AM4: w1 | AN4: w2 | AO4: = w0
AJ5: =interval -> 0.1 | AK5: =Wy -> 5.196152423 | AL5: =Wo -> 4.898979486 | AM5: =Wx -> 5.656854249 | AN5: =Wo -> 4.898979486
AJ7: time | AK7: P1 | AL7: P2 - 2.5 | AM7: P1 - 5.0 | AN7: P2 -7.5
AJ9: 0 | AK9: 1 | AL9: -2.5 | AM9: -4 | AN9: -7.5
AJ10: 0.1 | AK10: 0.8689520089 | AL10: -2.507539431 | AM10: -4.150079769 | AN10: -7.520907347
AJ11: 0.2 | AK11: 0.5305814028 | AL11: -2.525235211 | AM11: -4.531781573 | AN11: -7.568544625
AJ12: 0.3 | AK12: 0.06590364826 | AL12: -2.544207501 | AM12: -5.038906135 | AN12: -7.615312713
AJ13: 0.4 | AK13: -0.413897617 | AL13: -2.553533858 | AM13: -5.530989102 | AN13: -7.629061934
AJ14: 0.5 | AK14: -0.7941613628 | AL14: -2.544386325 | AM14: -5.87293997 | AN14: -7.58724623
AJ15: 0.6 | AK15: -0.9842412105 | AL15: -2.513716374 | AM15: -5.972844834 | AN15: -7.488245966
AJ16: 0.7 | AK16: -0.9391854521 | AL16: -2.466229842 | AM16: -5.807163109 | AN16: -7.35531982
AJ17: 0.8 | AK17: -0.6704026627 | AL17: -2.413882106 | AM17: -5.42627702 | AN17: -7.231143144
AJ18: 0.9 | AK18: -0.2427738787 | AL18: -2.372867257 | AM18: -4.939084812 | AN18: -7.164214472
AJ19: 1 | AK19: 0.2410578837 | AL19: -2.358859719 | AM19: -4.481369779 | AN19: -7.191435667
AJ20: 1.1 | AK20: 0.6654050706 | AL20: -2.381860347 | AM20: -4.177260008 | AN20: -7.322836905
AJ21: 1.2 | AK21: 0.9292888125 | AL21: -2.442217367 | AM21: -4.104901236 | AN21: -7.534095001
AJ22: 1.3 | AK22: 0.9705482443 | AL22: -2.529153864 | AM22: -4.276015612 | AN22: -7.770201491
AJ23: 1.4 | AK23: 0.7805305592 | AL23: -2.622485041 | AM23: -4.63479619 | AN23: -7.9600578
AJ24: 1.5 | AK24: 0.4058787817 | AL24: -2.69731745 | AM24: -5.075882283 | AN24: -8.038048481
AJ25: 1.6 | AK25: -0.06294483871 | AL25: -2.730633043 | AM25: -5.475676518 | AN25: -7.966006828
B26: X-motion | C26: N | E26: Y-motion | F26: N | AJ26: 1.7 | AK26: -0.5135696581 | AL26: -2.708028466 | AM26: -5.727601004 | AN26: -7.748370554
A27: x | B27: =G*(2*L+Q)/L/(L+Q)/2 -> 28 | C27: =XiX/ZetaX -> 7 | D27: x | E27: =G*upln/(L*upln+Q*lmda) -> 24.35820896 | F27: =XiY/ZetaY -> 17 | AJ27: 1.8 | AK27: -0.8387386598 | AL27: -2.628699394 | AM27: -5.771072837 | AN27: -7.435037052
A28: z | B28: =G*Q/L/(L+Q)/2 -> 4 | C28: =2*L/Q+1 -> 7 | D28: z | E28: =G*phi/(L*upln+Q*lmda) -> 1.432835821 | AJ28: 1.9 | AK28: -0.9619226978 | AL28: -2.507108299 | AM28: -5.606166242 | AN28: -7.110031262
AJ29: 2 | AK29: -0.8553896733 | AL29: -2.370585112 | AM29: -5.290384475 | AN29: -6.868525274
AJ30: 2.1 | AK30: -0.5464483883 | AL30: -2.253184906 | AM30: -4.919301536 | AN30: -6.788617161
B31: parameters | AJ31: 2.2 | AK31: -0.1104611284 | AL31: -2.187182908 | AM31: -4.597444855 | AN31: -6.906325471
B32: xY | C32: zY | D32: xX | E32: zX | G32: dt | AJ32: 2.3 | AK32: 0.3475900468 | AL32: -2.194333196 | AM32: -4.408336015 | AN32: -7.201749022
B33: =XiY -> 24.35820896 | C33: =ZetaY -> 1.432835821 | D33: =XiX -> 28 | E33: =ZetaX -> 4 | G33: 0.01 | AJ33: 2.4 | AK33: 0.7184627467 | AL33: -2.279231349 | AM33: -4.392410605 | AN33: -7.601320514
AJ34: 2.5 | AK34: 0.9147945839 | AL34: -2.426714353 | AM34: -4.538769226 | AN34: -7.996380627
AJ35: 2.6 | AK35: 0.8917486998 | AL35: -2.604278108 | AM35: -4.79230632 | AN35: -8.273308235
B36: A1Y | C36: A2Y | D36: A1X | E36: A2X | G36: P1Y | H36: P2Y | I36: P1X | J36: P2X | K36: V1Y | L36: V2Y | M36: V1X | N36: V2X | AJ36: 2.7 | AK36: 0.6572694795 | AL36: -2.769219519 | AM36: -5.073117104 | AN36: -8.346695131
AJ37: 2.8 | AK37: 0.2695985994 | AL37: -2.878939402 | AM37: -5.301609041 | AN37: -8.185752374
F38: initial state > | G38: 1 | H38: 0 | I38: 1 | J38: 0 | K38: 0 | L38: 0 | M38: 0 | N38: 0 | AJ38: 2.9 | AK38: -0.1772138956 | AL38: -2.901912635 | AM38: -5.421442739 | AN38: -7.825768462
AJ39: 3 | AK39: -0.5761939098 | AL39: -2.82650753 | AM39: -5.413591382 | AN39: -7.360610156
F40: current state > | G40: 0.9114712192 | H40: 0.06132379506 | I40: -0.002782176863 | J40: 0.8186154902 | K40: -1.741647894 | L40: 0.6839048324 | M40: 3.050877427 | N40: 0.3535451963 | AJ40: 3.1 | AK40: -0.8331389801 | AL40: -2.665234294 | AM40: -5.297960292 | AN40: -6.917779948
B41: A1Y | C41: A2Y | D41: A1X | E41: A2X | AJ41: 3.2 | AK41: -0.888933088 | AL41: -2.453054886 | AM41: -5.123075951 | AN41: -6.622789151
B42: =-B$33*G40-C$33*H40 -> -22.28967334 | C42: =-C$33*G40-B$33*H40 -> -2.799726427 | D42: =-D$33*I40-E$33*J40 -> -3.196561009 | E42: =-E$33*I40-D$33*J40 -> -22.91010502 | G42: 85.4 | H42: < time | AJ42: 3.3 | AK42: -0.7331771151 | AL42: -2.239850681 | AM42: -4.948024262 | AN42: -6.562982838
F43: < rates | K43: =K40+dt*B42 -> -1.964544627 | L43: =L40+dt*C42 -> 0.6559075681 | M43: =M40+dt*D42 -> 3.018911817 | N43: =N40+dt*E42 -> 0.1244441461 | AJ43: 3.4 | AK43: -0.4059848752 | AL43: -2.078658441 | AM43: -4.822958286 | AN43: -6.761398639
B44: =K43 -> -1.964544627 | C44: =L43 -> 0.6559075681 | D44: =M43 -> 3.018911817 | E44: =N43 -> 0.1244441461 | G44: P1Y | H44: P2Y | I44: P1X | J44: P2X | K44: V1Y | L44: V2Y | M44: V1X | N44: V2X | AJ44: 3.5 | AK44: 0.01232214238 | AL44: -2.012458048 | AM44: -4.774503827 | AN44: -7.168552155
B45: V1Y | C45: V2Y | D45: V1X | E45: V2X | G45: =G40+dt*B44 -> 0.8918257729 | H45: =H40+dt*C44 -> 0.06788287074 | I45: =I40+dt*D44 -> 0.02740694131 | J45: =J40+dt*E44 -> 0.8198599317 | AJ45: 3.6 | AK45: 0.4209795749 | AL45: -2.062807673 | AM45: -4.800367459 | AN45: -7.674952532
AJ46: 3.7 | AK46: 0.723130133 | AL46: -2.223311223 | AM46: -4.874143709 | AN46: -8.141131521
F47: next state > | G47: =G45 -> 0.8918257729 | H47: =H45 -> 0.06788287074 | I47: =I45 -> 0.02740694131 | J47: =J45 -> 0.8198599317 | K47: =K43 -> -1.964544627 | L47: =L43 -> 0.6559075681 | M47: =M43 -> 3.018911817 | N47: =N43 -> 0.1244441461 | AJ47: 3.8 | AK47: 0.8488562672 | AL47: -2.45981246 | AM47: -4.957860389 | AN47: -8.436790708
AJ48: 3.9 | AK48: 0.771400129 | AL48: -2.717586386 | AM48: -5.017336896 | AN48: -8.477882736
AJ49: 4 | AK49: 0.5127979287 | AL49: -2.934034404 | AM49: -5.03473995 | AN49: -8.250899903
AJ50: 4.1 | AK50: 0.1377583953 | AL50: -3.053930346 | AM50: -5.01397598 | AN50: -7.817248815
AJ51: 4.2 | AK51: -0.2625436233 | AL51: -3.043493773 | AM51: -4.97727856 | AN51: -7.296308925
AJ52: 4.3 | AK52: -0.5926961758 | AL52: -2.899708153 | AM52: -4.954570857 | AN52: -6.831938075
AJ53: 4.4 | AK53: -0.7758673697 | AL53: -2.652353723 | AM53: -4.969790764 | AN53: -6.551990586
AJ54: 4.5 | AK54: -0.7717360556 | AL54: -2.357955835 | AM54: -5.029463741 | AN54: -6.532440189
AJ55: 4.6 | AK55: -0.5853390908 | AL55: -2.086846653 | AM55: -5.118017916 | AN55: -6.776355032
AJ56: 4.7 | AK56: -0.2649012844 | AL56: -1.906306951 | AM56: -5.201925257 | AN56: -7.213653148
AJ57: 4.8 | AK57: 0.1106020105 | AL57: -1.863842081 | AM57: -5.241545696 | AN57: -7.721547149
AJ58: 4.9 | AK58: 0.4509506312 | AL58: -1.974755396 | AM58: -5.206654784 | AN58: -8.159635145
AJ59: 5 | AK59: 0.6764264992 | AL59: -2.217253852 | AM59: -5.090069012 | AN59: -8.409449089
AJ60: 5.1 | AK60: 0.7365431597 | AL60: -2.536553339 | AM60: -4.914132955 | AN60: -8.407125437
AJ61: 5.2 | AK61: 0.6213435493 | AL61: -2.857261466 | AM61: -4.72704701 | AN61: -8.160016302
AJ62: 5.3 | AK62: 0.3627394949 | AL62: -3.10123738 | AM62: -4.589405773 | AN62: -7.7428388
AJ63: 5.4 | AK63: 0.02581892972 | AL63: -3.206683739 | AM63: -4.554775308 | AN63: -7.274929501
AJ64: 5.5 | AK64: -0.3075414399 | AL64: -3.143793833 | AM64: -4.650489007 | AN64: -6.885565531
AJ65: 5.6 | AK65: -0.5586309281 | AL65: -2.922993255 | AM65: -4.865237579 | AN65: -6.677568781
AJ66: 5.7 | AK66: -0.6705503425 | AL66: -2.593534223 | AM66: -5.14823628 | AN66: -6.699619869
AJ67: 5.8 | AK67: -0.6211166418 | AL67: -2.232521533 | AM67: -5.421254104 | AN67: -6.934884679
AJ68: 5.9 | AK68: -0.4270973204 | AL68: -1.926812201 | AM68: -5.600649597 | AN68: -7.30860445
AJ69: 6 | AK69: -0.1390127797 | AL69: -1.752051234 | AM69: -5.623097606 | AN69: -7.711732568
AJ70: 6.1 | AK70: 0.1719641418 | AL70: -1.753919396 | AM70: -5.46706931 | AN70: -8.033172137
AJ71: 6.2 | AK71: 0.431626271 | AL71: -1.936249531 | AM71: -5.162960842 | AN71: -8.190978574
AJ72: 6.3 | AK72: 0.5804987297 | AL72: -2.259090602 | AM72: -4.787909519 | AN72: -8.153607844
AJ73: 6.4 | AK73: 0.587486408 | AL73: -2.647426021 | AM73: -4.445904024 | AN73: -7.945597673
AJ74: 6.5 | AK74: 0.4562644682 | AL74: -3.008652913 | AM74: -4.238410766 | AN74: -7.636887464
AJ75: 6.6 | AK75: 0.2231269112 | AL75: -3.254737791 | AM75: -4.233956686 | AN75: -7.319818925
AJ76: 6.7 | AK76: -0.05288838509 | AL76: -3.323730284 | AM76: -4.445864481 | AN76: -7.081268043
AJ77: 6.8 | AK77: -0.304944904 | AL77: -3.19536354 | AM77: -4.825292712 | AN77: -6.978379257
AJ78: 6.9 | AK78: -0.4746407996 | AL78: -2.896811717 | AM78: -5.272410447 | AN78: -7.024803283
AJ79: 7 | AK79: -0.5255760274 | AL79: -2.497006835 | AM79: -5.663176008 | AN79: -7.190775403
AJ80: 7.1 | AK80: -0.4510929004 | AL80: -2.090684946 | AM80: -5.884393879 | AN80: -7.415990481
AJ81: 7.2 | AK81: -0.2745618455 | AL81: -1.775863423 | AM81: -5.866971553 | AN81: -7.630415529
AJ82: 7.3 | AK82: -0.04245404011 | AL82: -1.630121807 | AM82: -5.607487285 | AN82: -7.776078743
AJ83: 7.4 | AK83: 0.1878190905 | AL83: -1.691443498 | AM83: -5.171338995 | AN83: -7.823053179
AJ84: 7.5 | AK84: 0.3621330977 | AL84: -1.94835885 | AM84: -4.676002982 | AN84: -7.775143919
AJ85: 7.6 | AK85: 0.4424126695 | AL85: -2.341938369 | AM85: -4.258763456 | AN85: -7.664362658
AJ86: 7.7 | AK86: 0.4149097149 | AL86: -2.779335805 | AM86: -4.03794852 | AN86: -7.536932664
AJ87: 7.8 | AK87: 0.2922076617 | AL87: -3.155762194 | AM87: -4.07880737 | AN87: -7.436131117
AJ88: 7.9 | AK88: 0.1087758731 | AL88: -3.379673023 | AM88: -4.37401498 | AN88: -7.387963468
AJ89: 8 | AK89: -0.08851806625 | AL89: -3.39509497 | AM89: -4.844682411 | AN89: -7.394331601
AJ90: 8.1 | AK90: -0.2523661951 | AL90: -3.195632078 | AM90: -5.361857264 | AN90: -7.435525479
AJ91: 8.2 | AK91: -0.3464009979 | AL91: -2.826643444 | AM91: -5.782539628 | AN91: -7.480536066
AJ92: 8.3 | AK92: -0.35325254 | AL92: -2.374916001 | AM92: -5.989970833 | AN92: -7.500994384
AJ93: 8.4 | AK93: -0.2775007038 | AL93: -1.948186719 | AM93: -5.926645457 | AN93: -7.483386805
AJ94: 8.5 | AK94: -0.1430995571 | AL94: -1.649361849 | AM94: -5.610552737 | AN94: -7.434945883
AJ95: 8.6 | AK95: 0.01375659676 | AL95: -1.55162272 | AM95: -5.12998109 | AN95: -7.380985757
AJ96: 8.7 | AK96: 0.1542800272 | AL96: -1.680458721 | AM96: -4.618408247 | AN96: -7.35460914
AJ97: 8.8 | AK97: 0.2466992567 | AL97: -2.007049073 | AM97: -4.21673651 | AN97: -7.382559255
AJ98: 8.9 | AK98: 0.273446636 | AL98: -2.454705453 | AM98: -4.03374047 | AN98: -7.472527393
AJ99: 9 | AK99: 0.2342967246 | AL99: -2.916936437 | AM99: -4.116027745 | AN99: -7.606896971
AJ100: 9.1 | AK100: 0.1449548694 | AL100: -3.282864825 | AM100: -4.435966148 | AN100: -7.745781653
AJ101: 9.2 | AK101: 0.0317826218 | AL101: -3.463911078 | AM101: -4.900762759 | AN101: -7.838987625
AJ102: 9.3 | AK102: -0.07571377477 | AL102: -3.415300733 | AM102: -5.379755425 | AN102: -7.843282198
AJ103: 9.4 | AK103: -0.1525428409 | AL103: -3.147158435 | AM103: -5.74179428 | AN103: -7.73920454
AJ104: 9.5 | AK104: -0.184054236 | AL104: -2.722434961 | AM104: -5.891849101 | AN104: -7.541394348
AJ105: 9.6 | AK105: -0.1685697697 | AL105: -2.242081903 | AM105: -5.796437484 | AN105: -7.298216417
AJ106: 9.7 | AK106: -0.1163949876 | AL106: -1.820976739 | AM106: -5.490934575 | AN106: -7.079812991
AJ107: 9.8 | AK107: -0.04577852768 | AL107: -1.560358793 | AM107: -5.067221522 | AN107: -6.957572074
AJ108: 9.9 | AK108: 0.02283695868 | AL108: -1.523411445 | AM108: -4.645834182 | AN108: -6.981097846
AJ109: 10 | AK109: 0.07256399648 | AL109: -1.71989844 | AM109: -4.341107505 | AN109: -7.160044163
AJ110: 10.1 | AK110: 0.09423581445 | AL110: -2.103600838 | AM110: -4.229540808 | AN110: -7.457109656
AJ111: 10.2 | AK111: 0.08795859731 | AL111: -2.58322375 | AM111: -4.33030223 | AN111: -7.7953177
AJ112: 10.3 | AK112: 0.06182999465 | AL112: -3.044190673 | AM112: -4.602925711 | AN112: -8.078334764
AJ113: 10.4 | AK113: 0.02842966195 | AL113: -3.376105311 | AM113: -4.962054605 | AN113: -8.218358752
AJ114: 10.5 | AK114: 0.0002974243403 | AL114: -3.499277213 | AM114: -5.304135416 | AN114: -8.163388125
AJ115: 10.6 | AK115: -0.01415656421 | AL115: -3.383917103 | AM115: -5.537720919 | AN115: -7.915395648
AJ116: 10.7 | AK116: -0.01306927364 | AL116: -3.057363561 | AM116: -5.608402112 | AN116: -7.533280084
AJ117: 10.8 | AK117: -0.001193362404 | AL117: -2.5975827 | AM117: -5.511438401 | AN117: -7.11883683
AJ118: 10.9 | AK118: 0.01231007383 | AL118: -2.114491586 | AM118: -5.289167738 | AN118: -6.789101808
AJ119: 11 | AK119: 0.01757070488 | AL119: -1.723594037 | AM119: -5.014960772 | AN119: -6.642730348
AJ120: 11.1 | AK120: 0.007954338332 | AL120: -1.518273057 | AM120: -4.769390473 | AN120: -6.730217727
AJ121: 11.2 | AK121: -0.01706856679 | AL121: -1.547408226 | AM121: -4.616270798 | AN121: -7.03701464
AJ122: 11.3 | AK122: -0.05112395048 | AL122: -1.80370043 | AM122: -4.585761497 | AN122: -7.485069662
AJ123: 11.4 | AK123: -0.08255612484 | AL123: -2.225501933 | AM123: -4.669100351 | AN123: -7.953021874
AJ124: 11.5 | AK124: -0.09805831055 | AL124: -2.711692591 | AM124: -4.825632472 | AN124: -8.309722885
AJ125: 11.6 | AK125: -0.08724041143 | AL125: -3.146001195 | AM125: -4.998934676 | AN125: -8.451652903
AJ126: 11.7 | AK126: -0.0467090181 | AL126: -3.424903375 | AM126: -5.136197092 | AN126: -8.333383441
AJ127: 11.8 | AK127: 0.01769814431 | AL127: -3.482380451 | AM127: -5.20439893 | AN127: -7.982016362
AJ128: 11.9 | AK128: 0.09139736781 | AL128: -3.305598339 | AM128: -5.198303723 | AN128: -7.491033199
AJ129: 12 | AK129: 0.1543636321 | AL129: -2.937770497 | AM129: -5.138322464 | AN129: -6.994931496
AJ130: 12.1 | AK130: 0.1865053321 | AL130: -2.467566975 | AM130: -5.059797304 | AN130: -6.631665719
AJ131: 12.2 | AK131: 0.1736803458 | AL131: -2.007671658 | AM131: -4.99807017 | AN131: -6.503572809
AJ132: 12.3 | AK132: 0.1126223205 | AL132: -1.667689071 | AM132: -4.974911225 | AN132: -6.648037756
AJ133: 12.4 | AK133: 0.01322844868 | AL133: -1.527935886 | AM133: -4.991138323 | AN133: -7.026439136
AJ134: 12.5 | AK134: -0.1026979847 | AL134: -1.620404814 | AM134: -5.02786781 | AN134: -7.534679352
AJ135: 12.6 | AK135: -0.2062120408 | AL135: -1.921427672 | AM135: -5.055652583 | AN135: -8.032372205
AJ136: 12.7 | AK136: -0.2684621889 | AL136: -2.357723431 | AM136: -5.047894238 | AN136: -8.382357273
AJ137: 12.8 | AK137: -0.2685857039 | AL137: -2.824288014 | AM137: -4.993353054 | AN137: -8.489223405
AJ138: 12.9 | AK138: -0.20013355 | AL138: -3.209746724 | AM138: -4.902864115 | AN138: -8.325829071
AJ139: 13 | AK139: -0.07414224749 | AL139: -3.423029083 | AM139: -4.807410517 | AN139: -7.940310866
AJ140: 13.1 | AK140: 0.08224758421 | AL140: -3.414956289 | AM140: -4.747812989 | AN140: -7.441737181
AJ141: 13.2 | AK141: 0.2315932661 | AL141: -3.189607185 | AM141: -4.759403116 | AN141: -6.968723822
AJ142: 13.3 | AK142: 0.3351440721 | AL142: -2.802829424 | AM142: -4.857069609 | AN142: -6.650179121
AJ143: 13.4 | AK143: 0.3628597809 | AL143: -2.348374975 | AM143: -5.026265506 | AN143: -6.569484094
AJ144: 13.5 | AK144: 0.3018714875 | AL144: -1.935107387 | AM144: -5.223802976 | AN144: -6.742246335
AJ145: 13.6 | AK145: 0.1610513963 | AL145: -1.660838053 | AM145: -5.389067663 | AN145: -7.113680714
AJ146: 13.7 | AK146: -0.02975924475 | AL146: -1.589099863 | AM146: -5.462685893 | AN146: -7.575905052
AJ147: 13.8 | AK147: -0.2259993466 | AL147: -1.734391941 | AM147: -5.406879664 | AN147: -7.999708412
AJ148: 13.9 | AK148: -0.3788256002 | AL148: -2.059331709 | AM148: -5.220730337 | AN148: -8.271327521
AJ149: 14 | AK149: -0.4472861498 | AL149: -2.484250471 | AM149: -4.944772969 | AN149: -8.323591687
AJ150: 14.1 | AK150: -0.4091923321 | AL150: -2.906774486 | AM150: -4.652475912 | AN150: -8.152743871
AJ151: 14.2 | AK151: -0.2678238815 | AL151: -3.22656776 | AM151: -4.430293505 | AN151: -7.816663304
AJ152: 14.3 | AK152: -0.05252657154 | AL152: -3.369237994 | AM152: -4.351814515 | AN152: -7.41573721
AJ153: 14.4 | AK153: 0.1872692971 | AL153: -3.303690886 | AM153: -4.453805998 | AN153: -7.062599401
AJ154: 14.5 | AK154: 0.3934205038 | AL154: -3.048872494 | AM154: -4.721858929 | AN154: -6.849925656
AJ155: 14.6 | AK155: 0.5132108793 | AL155: -2.668446645 | AM155: -5.090790446 | AN155: -6.825640576
AJ156: 14.7 | AK156: 0.512811074 | AL156: -2.254872493 | AM156: -5.460639218 | AN156: -6.982300544
AJ157: 14.8 | AK157: 0.3866260787 | AL157: -1.90686826 | AM157: -5.72428517 | AN157: -7.262945474
AJ158: 14.9 | AK158: 0.159989085 | AL158: -1.705769361 | AM158: -5.798917222 | AN158: -7.580764692
AJ159: 15 | AK159: -0.1157666572 | AL159: -1.696461497 | AM159: -5.651993065 | AN159: -7.845997755
AJ160: 15.1 | AK160: -0.3749439385 | AL160: -1.877372359 | AM160: -5.313564992 | AN160: -7.991722811
AJ161: 15.2 | AK161: -0.5531857157 | AL161: -2.201750893 | AM161: -4.870616629 | AN161: -7.99100983
AJ162: 15.3 | AK162: -0.6034809502 | AL162: -2.589712677 | AM162: -4.444304389 | AN162: -7.860964158
AJ163: 15.4 | AK163: -0.5084856944 | AL163: -2.94795586 | AM163: -4.156172865 | AN163: -7.653423502
AJ164: 15.5 | AK164: -0.2859469999 | AL164: -3.192271757 | AM164: -4.092938101 | AN164: -7.436142134
AJ165: 15.6 | AK165: 0.01437481359 | AL165: -3.267402005 | AM165: -4.28018747 | AN165: -7.270952184
AJ166: 15.7 | AK166: 0.3218240663 | AL166: -3.159544551 | AM166: -4.673021967 | AN166: -7.195878103
AJ167: 15.8 | AK167: 0.5615259341 | AL167: -2.898676154 | AM167: -5.166882688 | AN167: -7.216452555
AJ168: 15.9 | AK168: 0.672672172 | AL168: -2.550366457 | AM168: -5.625932417 | AN168: -7.308195177
AJ169: 16 | AK169: 0.623938753 | AL169: -2.199289278 | AM169: -5.921136416 | AN169: -7.428492848
AJ170: 16.1 | AK170: 0.4221282268 | AL170: -1.928579239 | AM170: -5.967175259 | AN170: -7.533178862
AJ171: 16.2 | AK171: 0.1116897583 | AL171: -1.800080415 | AM171: -5.747462524 | AN171: -7.591868036
AJ172: 16.3 | AK172: -0.2350403482 | AL172: -1.840195204 | AM172: -5.319840553 | AN172: -7.5968991
AJ173: 16.4 | AK173: -0.5347426738 | AL173: -2.034577132 | AM173: -4.801055296 | AN173: -7.563221513
AJ174: 16.5 | AK174: -0.713201146 | AL174: -2.332701893 | AM174: -4.334260099 | AN174: -7.519850378
AJ175: 16.6 | AK175: -0.72371423 | AL175: -2.660949086 | AM175: -4.048761114 | AN175: -7.496466788
AJ176: 16.7 | AK176: -0.5592559457 | AL176: -2.940818619 | AM176: -4.023523949 | AN176: -7.510364702
AJ177: 16.8 | AK177: -0.2552331279 | AL177: -3.107766029 | AM177: -4.264919411 | AN177: -7.558707055
AJ178: 16.9 | AK178: 0.118078412 | AL178: -3.126122636 | AM178: -4.705089647 | AN178: -7.619058369
AJ179: 17 | AK179: 0.4718185562 | AL179: -2.996643024 | AM179: -5.22136115 | AN179: -7.658110587
AJ180: 17.1 | AK180: 0.7197649417 | AL180: -2.755102274 | AM180: -5.671062801 | AN180: -7.645474821
AJ181: 17.2 | AK181: 0.7994072185 | AL181: -2.462569791 | AM181: -5.931701039 | AN181: -7.567438269
AJ182: 17.3 | AK182: 0.6877090768 | AL182: -2.18997142 | AM182: -5.934980605 | AN182: -7.435390554
AJ183: 17.4 | AK183: 0.4075830946 | AL183: -2.00084187 | AM183: -5.685045834 | AN183: -7.285316398
AJ184: 17.5 | AK184: 0.02329549407 | AL184: -1.936473692 | AM184: -5.255973546 | AN184: -7.167796986
AJ185: 17.6 | AK185: -0.3743066087 | AL185: -2.006944639 | AM185: -4.769584889 | AN185: -7.131349946
AJ186: 17.7 | AK186: -0.6893425335 | AL186: -2.189962004 | AM186: -4.360279726 | AN186: -7.204510918
AJ187: 17.8 | AK187: -0.8440923126 | AL187: -2.437503321 | AM187: -4.137194083 | AN187: -7.382899198
AJ188: 17.9 | AK188: -0.7982098683 | AL188: -2.688349107 | AM188: -4.154522927 | AN188: -7.626249219
AJ189: 18 | AK189: -0.5591963012 | AL189: -2.883251612 | AM189: -4.398237154 | AN189: -7.86735263
AJ190: 18.1 | AK190: -0.1814245136 | AL190: -2.978974556 | AM190: -4.792485807 | AN190: -8.030972759
AJ191: 18.2 | AK191: 0.2462451756 | AL191: -2.957865882 | AM191: -5.223210672 | AN191: -8.057314676
AJ192: 18.3 | AK192: 0.6214338784 | AL192: -2.830848801 | AM192: -5.571619558 | AN192: -7.922731169
AJ193: 18.4 | AK193: 0.852833158 | AL193: -2.63340568 | AM193: -5.747574124 | AN193: -7.65072445
AJ194: 18.5 | AK194: 0.8824893494 | AL194: -2.415851766 | AM194: -5.713341983 | AN194: -7.308960415
AJ195: 18.6 | AK195: 0.7003298976 | AL195: -2.230527103 | AM195: -5.491331774 | AN195: -6.992205142
AJ196: 18.7 | AK196: 0.3472879197 | AL196: -2.119163922 | AM196: -5.154347394 | AN196: -6.795554563
AJ197: 18.8 | AK197: -0.0938946815 | AL197: -2.103488003 | AM197: -4.8020485 | AN197: -6.785649986
AJ198: 18.9 | AK198: -0.5181194957 | AL198: -2.181171009 | AM198: -4.531153297 | AN198: -6.97864959
AJ199: 19 | AK199: -0.8230515394 | AL199: -2.327832344 | AM199: -4.408372997 | AN199: -7.332117397
AJ200: 19.1 | AK200: -0.933882958 | AL200: -2.504267062 | AM200: -4.45378896 | AN200: -7.754081041
AJ201: 19.2 | AK201: -0.8217297354 | AL201: -2.66683372 | AM201: -4.638872439 | AN201: -8.127415996
AJ202: 19.3 | AK202: -0.5111270288 | AL202: -2.778269391 | AM202: -4.898757528 | AN202: -8.342963729
AJ203: 19.4 | AK203: -0.07468512288 | AL203: -2.81624706 | AM203: -5.154146803 | AN203: -8.331858703
AJ204: 19.5 | AK204: 0.3839360711 | AL204: -2.777706216 | AM204: -5.335625161 | AN204: -8.087387753
... 659 more rows
